bitfinex-derivatives/quotes_SOLF0:USTF0_20250106
["timestamp","ask_amount","ask_price","bid_price","bid_amount"]
[1736126257217,2.76,212.08,211.97,1.4573]
[1736126258016,2.3585,212.03,211.97,1.4573]
[1736126258217,2.3585,212.03,211.96,5.3266]
[1736126258218,2.76,212.03,211.96,2.9674]
[1736126258422,14.53864821,212.03,211.96,2.9674]
[1736126259015,2.3587,212.01,211.96,2.9674]
[1736126260021,14.53864821,212.03,211.89,11.77864821]
[1736126260222,14.53864821,212.03,211.91,2.8261]
[1736126260417,5.1185,212.03,211.97,2.3591]
[1736126260622,2.76,212.03,211.92,11.77864821]
[1736126261015,2.76,212.03,211.93,2.76]
[1736126261420,2.76,212.03,211.98,2.359]
[1736126261821,2.76,212.03,211.93,2.76]
[1736126262124,14.53864821,212.03,211.91,2.8261]
[1736126263016,2.3589,211.99,211.92,2.3596]
[1736126264027,2.3589,211.99,211.93,2.3596]
[1736126264421,2.76,211.98,211.91,2.8261]
[1736126265120,11.77864821,211.97,211.85,4.91353244]
[1736126265731,2.3594,211.95,211.88,2.3601]
[1736126266624,2.3594,211.95,211.89,2.36]
[1736126266821,11.77864821,211.97,211.85,4.91353244]
[1736126267023,2.76,211.98,211.85,16.69218065]
[1736126267224,2.76,211.98,211.88,2.36]
[1736126267424,2.76,211.98,211.85,19.45218065]
[1736126267628,2.76,211.97,211.85,19.45218065]
[1736126268529,2.76,211.97,211.91,2.3598]
[1736126268724,2.76,211.97,211.85,19.45218065]
[1736126268928,2.3594,211.95,211.85,19.45218065]
[1736126270128,14.53864821,211.97,211.85,19.45218065]
[1736126270932,14.53864821,211.97,211.85,7.67353244]
[1736126271324,14.53864821,211.97,211.85,4.91353244]
[1736126271529,2.3596,211.93,211.87,2.3602]
[1736126273137,2.3595,211.94,211.88,2.3601]
[1736126275437,11.77864821,212.0,211.85,16.69218065]
[1736126275733,2.78,211.99,211.88,11.77864821]
[1736126276534,14.13754821,212.0,211.93,2.3595]
[1736126276734,2.78,211.99,211.88,11.77864821]
[1736126277538,2.3591,211.97,211.91,2.3598]
[1736126278437,2.78,211.99,211.88,11.77864821]
[1736126278640,5.139,211.99,211.93,2.3596]
[1736126279028,2.78,211.99,211.93,2.3596]
[1736126279227,2.78,211.99,211.91,2.3597]
[1736126279637,2.3595,211.94,211.85,16.69218065]
[1736126279838,2.3595,211.94,211.89,2.36]
[1736126280439,2.3593,211.96,211.91,2.3598]
[1736126281034,11.77864821,211.97,211.91,2.3598]
[1736126281234,2.3594,211.95,211.91,2.3598]
[1736126281837,11.77864821,212.0,211.85,16.69218065]
[1736126282031,2.74,211.99,211.88,11.77864821]
[1736126282434,5.0989,211.99,211.94,2.3594]
[1736126283144,2.74,211.99,211.88,14.51864821]
[1736126283341,2.74,212.0,211.91,11.77864821]
[1736126283542,2.74,212.02,211.92,4.489]
[1736126283738,2.74,212.02,211.98,2.3589]
[1736126287137,2.74,212.02,211.92,4.489]
[1736126288042,5.0986,212.02,211.97,2.3591]
[1736126290245,2.74,212.02,211.92,4.489]
[1736126290540,2.74,212.02,211.98,2.359]
[1736126293946,5.0986,212.02,211.98,2.359]
[1736126294239,2.74,212.02,211.98,2.359]
[1736126295347,8.1351819,212.09,211.94,14.51864821]
[1736126295546,10.8751819,212.09,211.97,11.77864821]
[1736126297043,8.1351819,212.09,212.03,2.3584]
[1736126298248,10.4929819,212.09,212.0,4.4306]
[1736126298442,10.4929819,212.09,212.04,2.3583]
[1736126299644,8.1351819,212.09,212.0,16.20924821]
[1736126299853,8.1351819,212.09,212.06,2.3581]
[1736126300555,8.1351819,212.09,212.0,16.20924821]
[1736126300850,8.1351819,212.09,212.04,2.3582]
[1736126301050,7.51968563,212.07,212.0,11.95028563]
[1736126301849,2.358,212.07,212.02,2.3585]
[1736126302048,9.87768563,212.07,212.02,2.3585]
[1736126302250,7.51968563,212.07,212.0,11.95028563]
[1736126302449,9.87798563,212.05,212.0,6.7894]
[1736126302950,2.3583,212.05,212.0,6.7894]
[1736126303349,2.3585,212.03,211.98,2.359]
[1736126303551,11.75106651,212.06,211.94,2.74]
[1736126304947,2.3586,212.02,211.97,2.3591]
[1736126308054,2.3588,212.0,211.95,2.3593]
[1736126311055,2.74,212.06,211.95,11.75106651]
[1736126311656,2.3582,212.05,212.0,2.3587]
[1736126312558,2.3584,212.04,212.0,2.3587]
[1736126314459,2.74,212.07,211.95,14.49106651]
[1736126315558,2.3587,212.02,211.97,2.359]
[1736126317254,129.0211431,212.16,212.01,11.75106651]
[1736126317454,2.74,212.13,212.02,1.4769]
[1736126317661,5.0974,212.13,212.07,2.3579]
[1736126317961,2.74,212.13,212.07,2.3579]
[1736126318655,2.74,212.13,212.02,1.4769]
[1736126318855,2.3578,212.09,212.02,1.4769]
[1736126320153,2.3581,212.06,212.02,1.4769]
[1736126320961,2.3581,212.06,212.02,3.8355]
[1736126321166,5.098,212.08,212.02,3.8355]
[1736126321563,2.74,212.08,212.02,3.8355]
[1736126322355,2.358,212.07,212.03,2.3585]
[1736126323063,2.358,212.07,212.02,1.4769]
[1736126323962,2.358,212.07,212.02,3.8355]
[1736126324863,2.74,212.08,212.02,3.8355]
[1736126325064,7.52174066,212.04,211.99,1.4458]
[1736126325266,7.52174066,212.04,211.95,7.52174066]
[1736126325565,2.3587,212.01,211.97,2.3591]
[1736126325965,7.52174066,212.02,211.97,2.3591]
[1736126327465,9.88034066,212.02,211.97,2.3591]
[1736126327654,7.52174066,212.02,211.95,2.3592]
[1736126327853,7.52174066,212.02,211.94,7.52174066]
[1736126328055,2.3588,212.01,211.94,7.52174066]
[1736126328464,2.74,212.03,211.94,7.52174066]
[1736126328665,2.3586,212.02,211.97,2.3591]
[1736126330865,2.3587,212.01,211.95,2.3592]
[1736126331058,7.52174066,212.01,211.94,7.52174066]
[1736126332465,2.3589,212.0,211.95,2.3593]
[1736126332965,7.52174066,211.99,211.9,2.9793]
[1736126333159,7.52174066,211.99,211.91,7.52174066]
[1736126334471,2.359,211.98,211.93,2.3596]
[1736126335867,7.52174066,212.01,211.93,7.52174066]
[1736126336175,7.52174066,212.01,211.94,2.3594]
[1736126336370,2.74,212.03,211.93,7.52174066]
[1736126336564,2.3588,212.0,211.93,7.52174066]
[1736126337572,2.3588,212.0,211.95,2.3593]
[1736126338173,9.88054066,212.0,211.95,2.3593]
[1736126338771,2.359,211.99,211.94,2.3595]
[1736126338973,7.52174066,211.98,211.9,10.50104066]
[1736126339167,10.26174066,211.98,211.9,10.50104066]
[1736126339673,2.3593,211.96,211.91,2.3597]
[1736126339868,2.3593,211.96,211.9,10.50104066]
[1736126341277,10.26174066,211.98,211.9,10.50104066]
[1736126341483,2.3591,211.97,211.92,2.3597]
[1736126341670,2.3591,211.97,211.92,9.88144066]
[1736126341875,5.0789,212.0,211.94,9.88114066]
[1736126342170,2.3589,212.0,211.94,9.88114066]
[1736126342375,7.52174066,212.0,211.94,9.88114066]
[1736126342973,7.52174066,212.0,211.94,2.3594]
[1736126343475,2.3589,211.99,211.94,2.3594]
[1736126344472,2.3592,211.97,211.92,2.3597]
[1736126344674,7.52174066,211.98,211.92,2.3597]
[1736126345476,2.3593,211.96,211.92,2.3597]
[1736126347076,2.72,212.01,211.92,7.52174066]
[1736126347285,7.52174066,212.0,211.92,7.52174066]
[1736126348485,2.3589,211.99,211.94,2.3594]
[1736126348989,2.3591,211.97,211.92,2.3596]
[1736126349188,7.52174066,211.98,211.9,10.50104066]
[1736126350589,2.3593,211.96,211.92,2.3597]
[1736126352290,7.52174066,211.94,211.9,2.3599]
[1736126352593,7.52174066,211.94,211.86,7.52174066]
[1736126352794,2.3596,211.93,211.88,2.3601]
[1736126354289,7.52174066,211.94,211.85,80.47128143]
[1736126354589,7.52174066,211.9,211.84,2.9082]
[1736126355494,2.36,211.89,211.84,5.2688]
[1736126356686,10.24174066,211.9,211.84,5.2688]
[1736126356687,12.60164066,211.9,211.84,5.2688]
[1736126356995,10.24174066,211.9,211.84,2.9082]
[1736126357197,9.88194066,211.88,211.82,2.3607]
[1736126358096,7.52174066,211.86,211.82,2.3607]
[1736126360191,7.52174066,211.88,211.84,2.3606]
[1736126360397,12.60174066,211.9,211.84,2.3606]
[1736126361198,10.24174066,211.92,211.84,7.52174066]
[1736126361791,10.24174066,211.92,211.88,2.3601]
[1736126363095,10.24174066,211.92,211.84,7.52174066]
[1736126363296,10.24174066,211.92,211.87,2.3602]
[1736126363794,7.52174066,211.9,211.81,2.8889]
[1736126363993,7.52174066,211.88,211.81,10.41064066]
[1736126364391,2.3603,211.87,211.83,2.3607]
[1736126364590,7.52174066,211.88,211.83,2.3607]
[1736126365696,9.88184066,211.88,211.83,2.3607]
[1736126366196,9.88184066,211.88,211.81,10.41064066]
[1736126366511,9.88184066,211.88,211.83,2.3607]
[1736126367604,2.3603,211.87,211.83,2.3607]
[1736126367898,5.0803,211.87,211.81,2.8889]
[1736126368298,2.3604,211.86,211.81,2.8889]
[1736126368499,7.52174066,211.86,211.74,2.72]
[1736126368699,7.52174066,211.86,211.79,2.361]
[1736126368904,2.3605,211.85,211.79,2.361]
[1736126369099,7.52174066,211.84,211.78,7.52174066]
[1736126369299,7.52174066,211.82,211.69,4.4491]
[1736126369501,10.24174066,211.82,211.74,7.52174066]
[1736126369895,10.24174066,211.82,211.76,2.3615]
[1736126370506,12.60254066,211.82,211.76,2.3615]
[1736126370701,12.60254066,211.82,211.74,7.52174066]
[1736126371400,12.60254066,211.82,211.77,2.3614]
[1736126372193,12.60254066,211.82,211.74,7.52174066]
[1736126372393,12.60254066,211.82,211.76,2.3615]
[1736126373000,12.60254066,211.82,211.76,9.88324066]
[1736126373902,2.3609,211.81,211.76,9.88324066]
[1736126374407,2.3609,211.81,211.76,2.3615]
[1736126375603,7.52174066,211.8,211.76,2.3615]
[1736126375800,9.88274066,211.8,211.69,7.1691]
[1736126376006,7.52174066,211.8,211.71,7.52174066]
[1736126376209,7.52174066,211.8,211.69,4.4491]
[1736126376513,9.88304066,211.78,211.71,7.52174066]
[1736126376709,7.52174066,211.79,211.71,7.52174066]
[1736126376909,7.52174066,211.79,211.73,7.52174066]
[1736126377409,7.52174066,211.79,211.72,7.52174066]
[1736126378105,2.72,211.82,211.72,7.52174066]
[1736126378306,7.52174066,211.81,211.72,7.52174066]
[1736126378704,9.88264066,211.81,211.74,2.3616]
[1736126378903,9.88264066,211.81,211.72,7.52174066]
[1736126379313,9.88264066,211.81,211.75,2.3615]
[1736126379712,9.88294066,211.79,211.71,7.52174066]
[1736126379916,9.88294066,211.79,211.73,2.3617]
[1736126380618,2.3613,211.78,211.73,2.3617]
[1736126381717,7.52174066,211.79,211.74,2.3617]
[1736126381921,2.3611,211.8,211.74,2.3617]
[1736126382309,2.3611,211.79,211.74,2.3617]
[1736126383308,7.52174066,211.79,211.69,4.4491]
[1736126383513,2.3615,211.76,211.69,11.97084066]
[1736126383720,2.72,211.75,211.69,11.97084066]
[1736126384220,2.72,211.75,211.72,2.3619]
[1736126386320,2.72,211.75,211.69,11.97084066]
[1736126386520,2.72,211.75,211.7,2.362]
[1736126387119,2.72,211.75,211.71,2.362]
[1736126387418,2.72,211.75,211.71,7.52174066]
[1736126388420,2.72,211.75,211.72,2.3619]
[1736126389826,5.0816,211.75,211.7,2.3621]
[1736126390125,2.72,211.75,211.69,4.4491]
[1736126391023,2.72,211.75,211.72,2.3619]
[1736126391226,2.72,211.77,211.72,7.52174066]
[1736126392221,2.72,211.77,211.76,2.3615]
[1736126394124,2.72,211.77,211.74,2.3616]
[1736126394325,2.72,211.77,211.72,7.52174066]
[1736126395226,2.72,211.77,211.76,2.3615]
[1736126395429,2.72,211.82,211.76,7.52174066]
[1736126395728,2.72,211.83,211.76,7.52174066]
[1736126395925,7.52174066,211.85,211.78,7.52174066]
[1736126396126,2.3604,211.86,211.78,7.52174066]
[1736126396331,2.72,211.86,211.8,7.52174066]
[1736126396629,2.72,211.86,211.82,2.3608]
[1736126399727,7.52174066,211.83,211.77,3.0409]
[1736126401422,7.52174066,211.81,211.77,3.0409]
[1736126401622,2.72,211.81,211.76,2.3614]
[1736126401824,10.24174066,211.81,211.73,7.52174066]
[1736126402024,10.24174066,211.81,211.75,7.52174066]
[1736126403428,2.72,211.81,211.75,7.52174066]
[1736126403627,7.52174066,211.8,211.73,7.52174066]
[1736126404136,7.52174066,211.78,211.72,2.9849]
[1736126404432,7.52174066,211.78,211.73,2.3617]
[1736126404433,9.88304066,211.78,211.73,2.3617]
[1736126404633,7.52174066,211.8,211.73,7.52174066]
[1736126405232,9.88304066,211.78,211.73,2.3617]
[1736126405830,2.3614,211.77,211.72,5.3468]
[1736126406234,7.52174066,211.78,211.72,2.9849]
[1736126407237,7.52174066,211.78,211.69,1.4461]
[1736126407436,7.52174066,211.78,211.69,8.96784066]
[1736126408527,2.3615,211.76,211.71,2.362]
[1736126408729,5.0815,211.76,211.71,2.362]
[1736126409940,2.72,211.76,211.72,2.3618]
[1736126410237,2.72,211.76,211.71,7.52174066]
[1736126411335,2.72,211.76,211.69,8.96784066]
[1736126411545,10.24174066,211.76,211.68,7.52174066]
[1736126412142,10.24174066,211.76,211.69,2.3622]
[1736126412947,2.3617,211.74,211.69,2.3622]
[1736126413446,7.52174066,211.74,211.69,2.3622]
[1736126413638,2.3618,211.73,211.67,2.3625]
[1736126413842,7.52174066,211.72,211.64,10.43574066]
[1736126414046,2.72,211.71,211.64,10.43574066]
[1736126414260,2.72,211.71,211.64,2.914]
[1736126414447,2.3622,211.7,211.64,2.914]
[1736126414648,7.52174066,211.7,211.64,2.914]
[1736126414943,2.72,211.71,211.64,12.79854066]
[1736126415240,2.72,211.71,211.66,7.52174066]
[1736126415440,5.082,211.71,211.66,2.3625]
[1736126416440,2.72,211.71,211.64,10.43574066]
[1736126416747,2.72,211.71,211.66,7.52174066]
[1736126417645,2.72,211.71,211.68,7.52174066]
[1736126418148,2.72,211.74,211.7,2.362]
[1736126419546,2.72,211.74,211.72,2.3619]
[1736126420453,2.72,211.77,211.72,2.3619]
[1736126420843,54.02,211.81,211.7,7.52174066]
[1736126421040,7.52174066,211.79,211.75,2.3616]
[1736126421944,2.72,211.79,211.76,2.3615]
[1736126422649,2.361,211.8,211.74,2.3616]
[1736126422849,7.52174066,211.79,211.74,2.3616]
[1736126423240,7.52174066,211.79,211.7,7.52174066]
[1736126423439,7.52174066,211.79,211.72,2.3618]
[1736126424253,9.88314066,211.77,211.71,2.362]
[1736126427152,9.88314066,211.77,211.72,2.3619]
[1736126427353,2.72,211.8,211.72,7.52174066]
[1736126427552,2.72,211.8,211.73,1.5376]
[1736126428054,2.72,211.8,211.75,2.3615]
[1736126428860,2.72,211.8,211.74,7.52174066]
[1736126429048,7.8291118,211.84,211.74,7.52174066]
[1736126429049,7.52174066,211.83,211.74,7.52174066]
[1736126429251,2.72,211.82,211.74,7.52174066]
[1736126429851,2.72,211.82,211.78,2.3612]
[1736126430249,9.88254066,211.83,211.78,2.3612]
[1736126430450,12.60254066,211.83,211.78,2.3612]
[1736126430851,7.8291118,211.84,211.81,2.3609]
[1736126431455,7.8291118,211.84,211.78,7.52174066]
[1736126431456,2.3607,211.83,211.78,2.3612]
[1736126431658,7.52174066,211.8,211.73,1.5376]
[1736126431859,7.52174066,211.78,211.73,1.5376]
[1736126432957,9.88294066,211.78,211.73,3.8994]
[1736126433155,7.52174066,211.76,211.73,1.5376]
[1736126434460,9.88324066,211.76,211.73,1.5376]
[1736126434862,7.52174066,211.78,211.73,1.5376]
[1736126435056,9.88304066,211.78,211.73,3.8993]
[1736126435851,7.52174066,211.78,211.74,2.3616]
[1736126436361,5.101,211.8,211.75,2.3616]
[1736126436551,1.4645,211.83,211.73,9.05934066]
[1736126436751,10.26174066,211.82,211.75,7.52174066]
[1736126437159,2.3609,211.81,211.77,2.3613]
[1736126437362,2.3609,211.81,211.75,7.52174066]
[1736126437660,7.52174066,211.8,211.73,9.05934066]
[1736126437858,2.3613,211.78,211.73,1.5376]
[1736126438256,7.52174066,211.78,211.73,1.5376]
[1736126438457,5.1015,211.77,211.73,1.5376]
[1736126438658,2.74,211.77,211.73,1.5376]
[1736126438859,2.74,211.77,211.71,1.5178]
[1736126439059,2.3616,211.75,211.71,1.5178]
[1736126439456,2.74,211.77,211.71,1.5178]
[1736126439756,2.3615,211.76,211.71,3.8798]
[1736126442168,7.52174066,211.74,211.67,2.3624]
[1736126442457,7.52174066,211.74,211.66,8.98884066]
[1736126442866,2.3621,211.7,211.66,11.35144066]
[1736126443162,2.3621,211.7,211.66,8.98884066]
[1736126443367,2.74,211.71,211.64,9.05694066]
[1736126443563,2.74,211.71,211.64,7.52174066]
[1736126443858,7.52174066,211.7,211.62,7.52174066]
[1736126444457,7.52174066,211.7,211.62,9.88474066]
[1736126444458,2.3625,211.67,211.62,9.88474066]
[1736126445063,2.3627,211.65,211.6,2.3633]
[1736126445264,2.74,211.66,211.61,7.52174066]
[1736126446167,2.74,211.66,211.61,9.88484066]
[1736126446757,5.1027,211.66,211.61,9.88484066]
[1736126446957,2.74,211.66,211.61,9.88484066]
[1736126447470,5.1026,211.66,211.61,9.88484066]
[1736126447769,2.74,211.66,211.61,7.52174066]
[1736126448266,2.74,211.66,211.61,9.88484066]
[1736126448667,2.74,211.66,211.61,7.52174066]
[1736126448962,7.52174066,211.7,211.61,7.52174066]
[1736126449162,2.74,211.69,211.61,7.52174066]
[1736126449358,2.74,211.69,211.64,2.3628]
[1736126450367,2.74,211.69,211.65,2.3627]
[1736126451165,2.74,211.69,211.67,2.3625]
[1736126452567,2.74,211.7,211.68,2.3623]
[1736126453568,7.52174066,211.73,211.66,7.52174066]
[1736126453771,2.74,211.72,211.69,2.3622]
[1736126454965,2.74,211.72,211.66,7.52174066]
[1736126455170,2.74,211.72,211.68,7.52174066]
[1736126456071,2.74,211.74,211.73,2.3618]
[1736126456275,7.52174066,211.77,211.73,2.3618]
[1736126456465,7.52174066,211.75,211.68,7.52174066]
[1736126456667,10.26174066,211.75,211.68,7.52174066]
[1736126457069,10.26174066,211.75,211.71,2.3619]
[1736126458965,2.362,211.72,211.65,4.2411]
[1736126459173,7.52174066,211.71,211.65,4.2411]
[1736126459370,7.52174066,211.73,211.65,11.76284066]
[1736126461067,7.52174066,211.73,211.67,7.52174066]
[1736126461278,12.62344066,211.75,211.67,7.52174066]
[1736126462675,12.62344066,211.75,211.7,2.362]
[1736126464982,2.74,211.75,211.69,7.52174066]
[1736126465378,2.74,211.75,211.71,2.3619]
[1736126466976,9.88324066,211.76,211.71,2.3619]
[1736126467282,12.60324066,211.76,211.71,2.3619]
[1736126467472,10.24174066,211.76,211.72,2.3619]
[1736126467869,10.24174066,211.77,211.72,2.3619]
[1736126469083,12.60314066,211.77,211.72,2.3619]
[1736126469377,7.52174066,211.73,211.65,6.9611]
[1736126469581,7.52174066,211.73,211.66,7.52174066]
[1736126470175,7.52174066,211.73,211.65,4.2411]
[1736126470380,7.52174066,211.71,211.65,4.2411]
[1736126470578,10.24174066,211.71,211.65,4.2411]
[1736126470787,2.3622,211.7,211.65,4.2411]
[1736126471479,2.3623,211.69,211.65,2.8264]
[1736126472475,2.3626,211.66,211.61,2.3631]
[1736126472785,2.72,211.66,211.6,7.52174066]
[1736126473184,2.3627,211.65,211.6,9.88494066]
[1736126473586,2.72,211.66,211.6,9.88494066]
[1736126473787,5.0826,211.66,211.6,9.88494066]
[1736126474282,5.0826,211.66,211.6,2.3632]
[1736126474585,5.0826,211.66,211.6,9.88494066]
[1736126475682,5.0826,211.66,211.61,2.3631]
[1736126475886,5.0826,211.66,211.6,7.52174066]
[1736126476183,2.72,211.66,211.6,7.52174066]
[1736126476488,2.3628,211.65,211.59,2.3633]
[1736126476988,9.88454066,211.65,211.59,2.3633]
[1736126477489,7.52174066,211.63,211.55,10.49274066]
[1736126477685,7.52174066,211.63,211.57,7.52174066]
[1736126478090,2.72,211.66,211.58,2.3634]
[1736126478091,2.3629,211.64,211.58,2.3634]
[1736126478283,10.24174066,211.66,211.59,7.52174066]
[1736126478485,10.24174066,211.66,211.55,2.971]
[1736126478682,10.24174066,211.66,211.59,7.52174066]
[1736126478986,12.60434066,211.66,211.59,7.52174066]
[1736126480491,10.24174066,211.66,211.59,9.88504066]
[1736126480690,2.3627,211.65,211.59,9.88504066]
[1736126481288,12.60444066,211.66,211.6,2.3632]
[1736126482091,5.0827,211.66,211.6,2.3632]
[1736126482293,12.60444066,211.66,211.6,2.3632]
[1736126483894,12.60444066,211.66,211.61,2.3631]
[1736126484096,2.72,211.67,211.63,7.52174066]
[1736126484694,2.72,211.67,211.63,9.88454066]
[1736126484996,2.72,211.67,211.63,2.3628]
[1736126485796,2.3624,211.68,211.64,2.3628]
[1736126486588,5.0823,211.69,211.64,2.3628]
[1736126486794,1.4587,211.75,211.65,7.52174066]
[1736126486995,7.52174066,211.72,211.65,7.52174066]
[1736126487195,9.88374066,211.72,211.67,2.3625]
[1736126487395,12.60374066,211.72,211.67,2.3625]
[1736126487596,10.24174066,211.72,211.65,7.52174066]
[1736126487995,7.52174066,211.72,211.65,7.52174066]
[1736126488198,10.24174066,211.72,211.63,7.52174066]
[1736126488399,2.3624,211.68,211.64,2.3628]
[1736126489593,2.72,211.72,211.63,7.52174066]
[1736126489793,10.24174066,211.72,211.64,2.9982]
[1736126490504,2.362,211.71,211.66,2.3626]
[1736126492204,2.362,211.71,211.67,2.3624]
[1736126492401,10.12652029,211.79,211.65,7.52174066]
[1736126492613,7.52174066,211.74,211.67,7.52174066]
[1736126492804,2.72,211.73,211.67,7.52174066]
[1736126493507,2.72,211.73,211.69,2.3621]
[1736126493707,9.88344066,211.74,211.69,2.3621]
[1736126494710,9.88344066,211.74,211.69,2.3622]
[1736126494901,1.5266,211.82,211.69,7.52174066]
[1736126495102,7.52174066,211.78,211.74,2.3617]
[1736126496410,7.52174066,211.76,211.7,9.88374066]
[1736126497105,7.52174066,211.76,211.7,2.362]
[1736126497504,2.3616,211.75,211.7,2.362]
[1736126497899,7.52174066,211.76,211.69,7.52174066]
[1736126498111,2.3615,211.76,211.71,2.362]
[1736126501106,7.52174066,211.74,211.64,2.9982]
[1736126501315,7.52174066,211.74,211.66,7.52174066]
[1736126501508,10.24174066,211.74,211.66,7.52174066]
[1736126501710,12.60354066,211.74,211.68,2.3623]
[1736126503319,10.24174066,211.74,211.68,7.52174066]
[1736126503517,10.24174066,211.74,211.69,2.3621]
[1736126503816,2.72,211.74,211.69,2.3621]
[1736126504315,2.72,211.74,211.68,7.52174066]
[1736126504615,2.72,211.74,211.7,2.3621]
[1736126505510,2.362,211.72,211.57,75.29459915]
[1736126505717,7.52174066,211.71,211.64,7.52174066]
[1736126506019,2.362,211.72,211.64,7.52174066]
[1736126506217,2.362,211.72,211.68,2.3624]
[1736126507019,2.72,211.74,211.66,7.52174066]
[1736126507217,2.72,211.74,211.66,8.91964066]
[1736126507720,2.72,211.74,211.68,7.52174066]
[1736126508219,2.72,211.74,211.71,2.362]
[1736126509722,7.52174066,211.73,211.66,8.91964066]
[1736126510118,2.362,211.71,211.66,8.91964066]
[1736126510314,7.52174066,211.71,211.66,1.3979]
[1736126510524,7.52174066,211.69,211.62,9.06124066]
[1736126510720,10.24174066,211.69,211.62,7.52174066]
[1736126511120,2.3626,211.67,211.62,9.88474066]
[1736126511316,10.24174066,211.69,211.62,9.88474066]
[1736126511827,2.3625,211.67,211.62,9.88474066]
[1736126512323,10.24174066,211.69,211.62,7.52174066]
[1736126512524,2.3626,211.66,211.6,9.88494066]
[1736126512824,2.3626,211.66,211.6,7.52174066]
[1736126514524,2.3626,211.66,211.61,2.3631]
[1736126517321,10.24174066,211.69,211.62,7.52174066]
[1736126517625,2.3625,211.68,211.62,2.363]
[1736126517822,10.24174066,211.69,211.62,2.363]
[1736126519422,2.3625,211.67,211.62,2.363]
[1736126520422,0.0492,211.79,211.65,7.52174066]
[1736126520629,7.52174066,211.73,211.65,7.52174066]
[1736126521331,9.88364066,211.73,211.67,2.3624]
[1736126521627,7.52174066,211.73,211.67,2.3624]
[1736126522028,2.3619,211.72,211.67,2.3624]
[1736126525030,7.52174066,211.73,211.67,2.3624]
[1736126525329,2.362,211.71,211.67,2.3624]
[1736126525530,7.52174066,211.71,211.63,7.52174066]
[1736126525731,2.3623,211.69,211.63,7.52174066]
[1736126526033,7.52174066,211.71,211.63,7.52174066]
[1736126526430,9.88384066,211.71,211.65,2.3627]
[1736126527331,2.3621,211.71,211.67,2.3625]
[1736126527931,2.3619,211.73,211.68,2.3623]
[1736126528129,9.88364066,211.73,211.68,2.3623]
[1736126528734,10.13638492,211.79,211.67,7.52174066]
[1736126528935,7.52174066,211.77,211.69,7.52174066]
[1736126529433,9.88334066,211.75,211.7,2.362]
[1736126530530,10.26174066,211.77,211.69,7.52174066]
[1736126530734,7.52174066,211.77,211.69,7.52174066]
[1736126532038,9.88314066,211.77,211.73,2.3618]
[1736126532339,10.26174066,211.79,211.71,7.52174066]
[1736126532538,7.52174066,211.79,211.71,7.52174066]
[1736126532736,9.88264066,211.81,211.74,2.3616]
[1736126532945,2.74,211.8,211.73,7.52174066]
[1736126534036,2.74,211.8,211.76,2.3614]
[1736126535139,2.74,211.81,211.77,2.3613]
[1736126536338,7.52174066,211.8,211.73,7.52174066]
[1736126536541,7.52174066,211.78,211.69,7.52174066]
[1736126536739,7.52174066,211.76,211.69,7.52174066]
[1736126537340,9.88334066,211.76,211.71,2.3619]
[1736126538043,7.52174066,211.76,211.71,2.3619]
[1736126538546,9.88304066,211.78,211.72,2.3618]
[1736126539247,9.88304066,211.78,211.73,2.3618]
[1736126539539,2.3613,211.78,211.71,7.52174066]
[1736126539744,7.52174066,211.8,211.71,7.52174066]
[1736126539745,9.88284066,211.8,211.71,7.52174066]
[1736126540143,9.88284066,211.8,211.74,2.3616]
[1736126540643,7.52174066,211.8,211.74,2.3616]
[1736126540847,2.3612,211.79,211.74,2.3616]
[1736126541447,9.88274066,211.8,211.73,7.52174066]
[1736126541636,2.361,211.8,211.73,7.52174066]
[1736126541838,10.26174066,211.82,211.75,7.52174066]
[1736126542043,10.26174066,211.82,211.76,2.9485]
[1736126542345,2.3609,211.81,211.76,5.31]
[1736126544740,7.52174066,211.84,211.76,2.9485]
[1736126544942,10.26174066,211.84,211.77,7.52174066]
[1736126545146,7.70402256,211.87,211.81,7.52174066]
[1736126545147,10.44402256,211.87,211.81,7.52174066]